lending/lending_fUSD_20250121
["ID","MTS","AMOUNT","RATE_DAILY","PERIOD"]
[349903784,1737487846577,-150.0,0.00021014,2]
[349903786,1737487846586,-150.0,0.00021014,2]
[349903788,1737487846595,-47.08282277,0.00021018,2]
[349903790,1737487846608,-102.91717723,0.00021018,2]
[349903792,1737487846617,-150.0,0.00021019,2]
[349903794,1737487846627,-150.0,0.00021021,2]
[349903796,1737487846636,-150.0,0.00021027,2]
[349903798,1737487846644,-150.0,0.00021027,2]
[349903800,1737487846654,-150.0,0.00021027,2]
[349903802,1737487846663,-150.0,0.00021029,2]
[349903804,1737487846673,-150.0,0.00021032,2]
[349903806,1737487846683,-150.0,0.00021033,2]
[349903808,1737487846692,-150.0,0.00021036,2]
[349903810,1737487846701,-150.0,0.0002104,2]
[349903812,1737487846711,-150.0,0.0002104,2]
[349903814,1737487846720,-194.46683062,0.00021044,2]
[349903816,1737487846729,-150.0,0.00021046,2]
[349903818,1737487846739,-150.0,0.00021048,2]
[349903820,1737487846748,-150.0,0.00021052,2]
[349903822,1737487846758,-150.0,0.00021054,2]
[349903824,1737487846767,-150.0,0.00021056,2]
[349903826,1737487846776,-150.0,0.00021057,2]
[349903828,1737487846785,-150.0,0.00021058,2]
[349903830,1737487846794,-150.0,0.0002106,2]
[349903832,1737487846804,-150.0,0.00021061,2]
[349903834,1737487846813,-150.0,0.00021065,2]
[349903836,1737487846822,-285.87962963,0.00021068,2]
[349903838,1737487846832,-150.0,0.00021069,2]
[349903840,1737487846841,-150.0,0.00021069,2]
[349903842,1737487846851,-150.0,0.00021072,2]
[349903844,1737487846860,-150.0,0.00021072,2]
[349903846,1737487846869,-150.0,0.00021075,2]
[349903848,1737487846879,-550.0,0.00021077,2]
[349903849,1737487846889,-150.0,0.00021077,2]
[349903851,1737487846898,-420.0,0.00021079,2]
[349903853,1737487846907,-150.0,0.00021085,2]
[349903855,1737487846916,-150.0,0.00021086,2]
[349903857,1737487846926,-150.0,0.00021087,2]
[349903859,1737487846935,-150.0,0.00021088,2]
[349903861,1737487846945,-150.0,0.00021088,2]
[349903863,1737487846954,-150.0,0.00021089,2]
[349903865,1737487846963,-150.0,0.0002109,2]
[349903866,1737487846972,-150.0,0.0002109,2]
[349903867,1737487846981,-3000.0,0.0002109,2]
[349903868,1737487846990,-500.0,0.00021093,2]
[349903869,1737487847000,-500.0,0.00021094,2]
[349903870,1737487847009,-500.0,0.00021094,2]
[349903871,1737487847018,-500.0,0.00021094,2]
[349903872,1737487847027,-500.0,0.00021094,2]
[349903873,1737487847036,-500.0,0.00021094,2]
[349903875,1737487847045,-500.0,0.00021094,2]
[349903877,1737487847055,-627.32444744,0.00021094,2]
[349903879,1737487847064,-500.0,0.00021094,2]
[349903881,1737487847074,-500.0,0.00021094,2]
[349903883,1737487847083,-500.0,0.00021094,2]
[349903885,1737487847092,-572.4,0.00021094,2]
[349903887,1737487847101,-500.0,0.00021094,2]
[349903889,1737487847110,-500.0,0.00021094,2]
[349903891,1737487847119,-150.0,0.00021095,2]
[349903893,1737487847128,-150.0,0.00021095,2]
[349903895,1737487847137,-150.0,0.00021095,2]
[349903897,1737487847147,-150.0,0.00021096,2]
[349903899,1737487847156,-150.0,0.00021098,2]
[349903901,1737487847165,-150.0,0.00021099,2]
[349903903,1737487847175,-209.13062701,0.000211,2]
[349903905,1737487847184,-150.0,0.00021102,2]
[349903907,1737487847194,-194.46683062,0.00021103,2]
[349903909,1737487847203,-150.0,0.00021105,2]
[349903911,1737487847213,-150.0,0.00021108,2]
[349903913,1737487847222,-1000.0,0.00021109,2]
[349903914,1737487847230,-150.0,0.00021111,2]
[349903916,1737487847240,-150.0,0.00021115,2]
[349903918,1737487847249,-150.0,0.00021116,2]
[349903920,1737487847259,-150.0,0.00021119,2]
[349903923,1737487847273,-150.89967517,0.00021122,2]
[349903925,1737487847287,-150.0,0.00021124,2]
[349903928,1737487847300,-150.0,0.00021127,2]
[349903930,1737487847311,-150.0,0.00021128,2]
[349903932,1737487847321,-150.0,0.00021129,2]
[349903934,1737487847333,-150.0,0.00021132,2]
[349903936,1737487847344,-150.0,0.00021132,2]
[349903939,1737487847356,-150.0,0.00021133,2]
[349903941,1737487847367,-150.0,0.00021134,2]
[349903943,1737487847379,-150.0,0.00021136,2]
[349903945,1737487847393,-500.0,0.00021138,2]
[349903948,1737487847404,-500.0,0.00021138,2]
[349903950,1737487847416,-500.0,0.00021138,2]
[349903952,1737487847426,-500.0,0.00021138,2]
[349903954,1737487847437,-440.9,0.00021138,2]
[349903956,1737487847452,-439.532057,0.00021139,2]
[349903959,1737487847463,-500.0,0.00021139,2]
[349903961,1737487847475,-610.61,0.00021139,2]
[349903963,1737487847487,-273.716328,0.00021139,2]
[349903965,1737487847499,-500.0,0.00021139,2]
[349903968,1737487847511,-910.13,0.00021139,2]
[349903970,1737487847524,-509.62,0.00021139,2]
[349903972,1737487847541,-771.25,0.00021139,2]
[349903973,1737487847554,-1019.02,0.00021139,2]
[349903974,1737487847567,-664.9,0.00021139,2]
[349903975,1737487847580,-530.65,0.00021139,2]
[349903976,1737487847592,-1024.4,0.00021139,2]
[349903977,1737487847605,-852.04,0.00021139,2]
[349903978,1737487847619,-500.0,0.00021139,2]
[349903979,1737487847632,-500.0,0.00021139,2]
[349903980,1737487847644,-500.0,0.00021139,2]
[349903981,1737487847655,-500.0,0.00021139,2]
[349903982,1737487847667,-1122.63,0.00021139,2]
[349903983,1737487847679,-559.79,0.00021139,2]
[349903984,1737487847691,-500.0,0.00021139,2]
[349903985,1737487847704,-1514.3,0.00021139,2]
[349903986,1737487847717,-691.82,0.00021139,2]
[349903987,1737487847728,-1255.99,0.00021139,2]
[349903988,1737487847739,-500.0,0.00021139,2]
[349903989,1737487847751,-948.99,0.00021139,2]
[349903990,1737487847762,-500.0,0.00021139,2]
[349903991,1737487847772,-777.81,0.00021139,2]
[349903992,1737487847783,-685.7,0.00021139,2]
[349903993,1737487847793,-1053.23,0.00021139,2]
[349903994,1737487847806,-1960.93,0.00021139,2]
[349903995,1737487847820,-537.01,0.00021139,2]
[349903996,1737487847832,-758.76,0.00021139,2]
[349903997,1737487847843,-500.0,0.00021139,2]
[349903998,1737487847853,-1218.89,0.00021139,2]
[349903999,1737487847864,-500.0,0.00021139,2]
[349904000,1737487847875,-500.0,0.00021139,2]
[349904001,1737487847886,-981.08,0.00021139,2]
[349904002,1737487847899,-500.0,0.00021139,2]
[349904003,1737487847911,-500.0,0.00021139,2]
[349904004,1737487847923,-1084.65,0.00021139,2]
[349904005,1737487847934,-500.0,0.00021139,2]
[349904006,1737487847945,-519.09,0.00021139,2]
[349904007,1737487847955,-500.0,0.00021139,2]
[349904008,1737487847965,-500.0,0.00021139,2]
[349904009,1737487847976,-918.82,0.00021139,2]
[349904010,1737487847987,-910.31,0.00021139,2]
[349904011,1737487847998,-500.0,0.00021139,2]
[349904012,1737487848009,-500.0,0.00021139,2]
[349904014,1737487848020,-513.08,0.00021139,2]
[349904015,1737487848034,-500.0,0.00021139,2]
[349904016,1737487848044,-500.0,0.00021139,2]
[349904017,1737487848055,-500.0,0.00021139,2]
[349904018,1737487848066,-150.0,0.0002114,2]
[349904019,1737487848078,-150.0,0.0002114,2]
[349904021,1737487848089,-150.0,0.00021141,2]
[349904023,1737487848099,-150.0,0.00021143,2]
[349904025,1737487848109,-150.0,0.00021148,2]
[349904027,1737487848122,-1000.0,0.00021149,2]
[349904029,1737487848133,-150.0,0.00021151,2]
[349904031,1737487848144,-150.0,0.00021155,2]
[349904033,1737487848158,-150.0,0.00021156,2]
[349904035,1737487848169,-150.0,0.00021158,2]
[349904037,1737487848180,-150.0,0.00021162,2]
[349904039,1737487848191,-1864.0,0.00021162,2]
[349904041,1737487848202,-907.0,0.00021162,2]
[349904043,1737487848213,-781.0,0.00021162,2]
[349904045,1737487848224,-2948.0,0.00021162,2]
[349904047,1737487848235,-1261.0,0.00021162,2]
[349904049,1737487848245,-537.0,0.00021162,2]
[349904051,1737487848256,-3984.0,0.00021162,2]
[349904053,1737487848268,-150.0,0.00021162,2]
[349904055,1737487848279,-172.467,0.00021162,2]
[349904057,1737487848292,-2018.0,0.00021162,2]
[349904059,1737487848303,-3902.0,0.00021162,2]
[349904061,1737487848315,-1269.0,0.00021162,2]
[349904063,1737487848327,-1106.0,0.00021162,2]
[349904066,1737487848339,-194.46683062,0.00021163,2]
[349904068,1737487848350,-150.0,0.00021163,2]
[349904070,1737487848361,-4572.8051607,0.00021169,2]
[349904072,1737487848374,-13793.8269178,0.00021169,2]
[349904074,1737487848385,-150.0,0.00021171,2]
[349904076,1737487848397,-150.0,0.00021171,2]
[349904078,1737487848407,-150.0,0.00021172,2]
[349904080,1737487848418,-500.0,0.00021173,2]
[349904082,1737487848430,-500.0,0.00021173,2]
[349904084,1737487848441,-150.0,0.00021173,2]
[349904086,1737487848453,-150.0,0.00021173,2]
[349904088,1737487848464,-500.0,0.00021178,2]
[349904090,1737487848475,-285.87962963,0.00021178,2]
[349904092,1737487848485,-476.0197845,0.00021179,2]
[349904095,1737487848497,-150.0,0.0002118,2]
[349904097,1737487848508,-150.0,0.0002118,2]
[349904099,1737487848519,-339298.1182437,0.0002118,2]
[349904101,1737487848536,-150.0,0.00021183,2]
[349904103,1737487848546,-150.0,0.00021186,2]
[349904105,1737487848557,-150.0,0.00021191,2]
[349904107,1737487848567,-150.0,0.00021194,2]
[349904109,1737487848579,-150.0,0.00021194,2]
[349904112,1737487848590,-150.0,0.00021194,2]
[349904114,1737487848601,-150.0,0.00021199,2]
[349904116,1737487848612,-296.63138568,0.000212,2]
[349904118,1737487848623,-191.71203006,0.000212,2]
[349904120,1737487848634,-150.0,0.00021202,2]
[349904122,1737487848645,-150.0,0.00021206,2]
[349904124,1737487848656,-150.0,0.00021207,2]
[349904126,1737487848667,-150.0,0.00021212,2]
[349904128,1737487848678,-150.0,0.00021213,2]
[349904130,1737487848689,-150.0,0.00021214,2]
[349904132,1737487848700,-150.0,0.00021218,2]
[349904135,1737487848712,-150.0,0.0002122,2]
[349904137,1737487848724,-150.0,0.0002122,2]
[349904139,1737487848734,-194.46683062,0.00021222,2]
[349904141,1737487848745,-1000.0,0.00021225,2]
[349904143,1737487848756,-150.0,0.00021229,2]
[349904145,1737487848766,-150.0,0.00021229,2]
[349904147,1737487848777,-150.0,0.00021234,2]
[349904149,1737487848787,-1000.0,0.00021236,14]
[349904151,1737487848798,-500.0,0.00021239,2]
[349904153,1737487848809,-572.04,0.00021239,2]
[349904156,1737487848820,-500.0,0.00021239,2]
[349904158,1737487848831,-544.01,0.00021239,2]
[349904160,1737487848841,-500.0,0.00021239,2]
[349904162,1737487848851,-500.0,0.00021239,2]
[349904164,1737487848862,-500.0,0.00021239,2]
[349904166,1737487848872,-500.0,0.00021239,2]
[349904168,1737487848883,-500.0,0.00021239,2]
[349904170,1737487848894,-537.88,0.00021239,2]
[349904172,1737487848905,-500.0,0.00021239,2]
[349904174,1737487848916,-500.0,0.00021239,2]
[349904177,1737487848929,-500.0,0.00021239,2]
[349904179,1737487848940,-500.0,0.00021239,2]
[349904181,1737487848951,-617.72053745,0.00021239,2]
[349904183,1737487848960,-500.0,0.00021239,2]
[349904185,1737487848970,-500.0,0.00021239,2]
[349904187,1737487848979,-500.0,0.00021239,2]
[349904188,1737487848988,-500.0,0.00021239,2]
[349904190,1737487848999,-500.0,0.00021239,2]
[349904192,1737487849009,-500.0,0.00021239,2]
[349904194,1737487849020,-500.0,0.00021239,2]
[349904196,1737487849031,-500.0,0.00021239,2]
[349904198,1737487849041,-500.0,0.00021239,2]
[349904200,1737487849052,-500.0,0.00021239,2]
[349904203,1737487849062,-500.0,0.00021239,2]
[349904205,1737487849072,-500.0,0.00021239,2]
[349904206,1737487849083,-500.0,0.00021239,2]
[349904208,1737487849094,-500.0,0.00021239,2]
[349904210,1737487849104,-500.0,0.00021239,2]
[349904212,1737487849114,-500.0,0.00021239,2]
[349904213,1737487849124,-500.0,0.00021239,2]
[349904214,1737487849134,-500.0,0.00021239,2]
[349904215,1737487849144,-509.55,0.00021239,2]
[349904216,1737487849155,-500.0,0.00021239,2]
[349904217,1737487849165,-500.0,0.00021239,2]
[349904218,1737487849175,-500.0,0.00021239,2]
[349904220,1737487849188,-500.0,0.00021239,2]
[349904221,1737487849198,-546.0,0.00021239,2]
[349904223,1737487849208,-500.0,0.00021239,2]
[349904225,1737487849220,-584.33,0.00021239,2]
[349904227,1737487849230,-500.0,0.00021239,2]
[349904229,1737487849241,-500.0,0.00021239,2]
[349904231,1737487849251,-500.0,0.00021239,2]
[349904233,1737487849262,-559.57,0.00021239,2]
[349904235,1737487849272,-500.0,0.00021239,2]
[349904237,1737487849283,-936.52,0.00021239,2]
[349904239,1737487849293,-500.0,0.00021239,2]
[349904241,1737487849303,-500.0,0.00021239,2]
[349904243,1737487849314,-500.0,0.00021239,2]
[349904246,1737487849324,-630.78,0.00021239,2]
[349904248,1737487849334,-500.0,0.00021239,2]
[349904250,1737487849344,-411.7126,0.00021239,2]
[349904252,1737487849354,-500.0,0.00021239,2]
[349904281,1737487849656,-594.9,0.00021239,2]
[349904283,1737487849680,-571.93047796,0.00021239,2]
[349904285,1737487849699,-500.0,0.00021239,2]
[349904286,1737487849710,-500.0,0.00021239,2]
[349904288,1737487849720,-500.0,0.00021239,2]
[349904289,1737487849729,-541.91,0.00021239,2]
[349904291,1737487849739,-500.0,0.00021239,2]
[349904292,1737487849752,-1149.84,0.00021239,2]
[349904294,1737487849762,-576.04712896,0.00021239,2]
[349904295,1737487849771,-500.0,0.00021239,2]
[349904296,1737487849779,-500.0,0.00021239,2]
[349904298,1737487849788,-500.0,0.00021239,2]
[349904299,1737487849797,-500.0,0.00021239,2]
[349904301,1737487849808,-500.0,0.00021239,2]
[349904302,1737487849816,-500.0,0.00021239,2]
[349904304,1737487849826,-500.0,0.00021239,2]
[349904306,1737487849835,-500.0,0.00021239,2]
[349904307,1737487849845,-500.0,0.00021239,2]
[349904308,1737487849854,-500.0,0.00021239,2]
[349904310,1737487849863,-538.16,0.00021239,2]
[349904311,1737487849873,-500.0,0.00021239,2]
[349904312,1737487849883,-2623.41,0.00021239,2]
[349904313,1737487849893,-500.0,0.00021239,2]
[349904314,1737487849903,-561.84,0.00021239,2]
[349904315,1737487849911,-500.0,0.0002124,2]
[349904316,1737487849921,-500.0,0.0002124,2]
[349904317,1737487849931,-500.0,0.0002124,2]
[349904318,1737487849940,-500.0,0.0002124,2]
[349904319,1737487849949,-500.0,0.0002124,2]
[349904320,1737487849958,-500.0,0.0002124,2]
[349904321,1737487849967,-500.0,0.0002124,2]
[349904322,1737487849977,-500.0,0.0002124,2]
[349904323,1737487849986,-500.0,0.0002124,2]
[349904324,1737487849996,-500.0,0.0002124,2]
[349904325,1737487850007,-500.0,0.0002124,2]
[349904326,1737487850018,-500.0,0.0002124,2]
[349904327,1737487850027,-500.0,0.0002124,2]
[349904328,1737487850036,-223.08845827,0.0002124,2]
[349904329,1737487850046,-500.0,0.0002124,2]
[349904330,1737487850055,-500.0,0.0002124,2]
[349904331,1737487850064,-500.0,0.0002124,2]
[349904332,1737487850074,-500.0,0.0002124,2]
[349904333,1737487850084,-500.0,0.0002124,2]
[349904334,1737487850093,-500.0,0.0002124,2]
[349904335,1737487850102,-566.5209284,0.0002124,2]
[349904336,1737487850111,-500.0,0.0002124,2]
[349904337,1737487850121,-500.0,0.0002124,2]
[349904338,1737487850131,-500.0,0.0002124,2]
[349904339,1737487850140,-500.0,0.0002124,2]
[349904340,1737487850150,-500.0,0.0002124,2]
[349904341,1737487850160,-500.0,0.0002124,2]
[349904342,1737487850169,-500.0,0.0002124,2]
[349904343,1737487850181,-500.0,0.0002124,2]
[349904344,1737487850190,-500.0,0.0002124,2]
[349904345,1737487850199,-500.0,0.0002124,2]
[349904346,1737487850209,-210.59046057,0.0002124,2]
[349904347,1737487850219,-1290.63,0.0002124,2]
[349904348,1737487850229,-500.0,0.0002124,2]
[349904349,1737487850239,-1930.84,0.0002124,2]
[349904350,1737487850249,-500.0,0.0002124,2]
[349904351,1737487850258,-536.71,0.0002124,2]
[349904353,1737487850267,-500.0,0.0002124,2]
[349904355,1737487850276,-500.0,0.0002124,2]
[349904357,1737487850285,-500.0,0.0002124,2]
[349904358,1737487850295,-854.15,0.0002124,2]
[349904359,1737487850305,-500.0,0.0002124,2]
[349904360,1737487850318,-500.0,0.0002124,2]
[349904361,1737487850328,-545.81,0.0002124,2]
[349904362,1737487850337,-500.0,0.0002124,2]
[349904363,1737487850347,-500.0,0.0002124,2]
[349904364,1737487850357,-500.0,0.0002124,2]
[349904365,1737487850366,-500.0,0.0002124,2]
[349904366,1737487850375,-500.0,0.0002124,2]
[349904367,1737487850384,-500.0,0.0002124,2]
[349904368,1737487850395,-500.0,0.0002124,2]
[349904369,1737487850412,-531.04490341,0.0002124,2]
[349904370,1737487850421,-500.0,0.0002124,2]
[349904371,1737487850431,-500.0,0.0002124,2]
[349904372,1737487850441,-500.0,0.0002124,2]
[349904373,1737487850450,-500.0,0.0002124,2]
[349904374,1737487850459,-648.15,0.0002124,2]
[349904375,1737487850469,-500.0,0.0002124,2]
[349904376,1737487850478,-3000.0,0.0002124,2]
[349904377,1737487850487,-500.0,0.0002124,2]
[349904378,1737487850496,-500.0,0.0002124,2]
[349904379,1737487850505,-500.0,0.0002124,2]
[349904380,1737487850514,-500.0,0.0002124,2]
[349904381,1737487850524,-500.0,0.0002124,2]
[349904382,1737487850544,-500.0,0.0002124,2]
[349904383,1737487850563,-500.0,0.0002124,2]
[349904384,1737487850573,-500.0,0.0002124,2]
[349904385,1737487850582,-500.0,0.0002124,2]
[349904386,1737487850592,-222.28609831,0.00021241,2]
[349904387,1737487850603,-150.0,0.00021242,2]
[349904388,1737487850613,-150.0,0.00021244,2]
[349904389,1737487850623,-150.0,0.00021246,2]
[349904390,1737487850632,-150.0,0.00021248,2]
[349904391,1737487850642,-150.0,0.00021258,2]
[349904392,1737487850651,-150.0,0.00021258,2]
[349904393,1737487850662,-194.46683062,0.00021281,2]
[349904394,1737487850674,-285.87962963,0.00021288,2]
[349904395,1737487850685,-999.0,0.00021299,2]
[349904396,1737487850695,-282575.80957585,0.000213,15]
[349904411,1737488535155,200.41,0.00010137,2]
[349904413,1737488558237,150.0,0.00018,3]
[349904414,1737488644242,-550.0,0.00015,2]
[349904415,1737488644267,-200.41,0.00016813,2]
[349904416,1737488644290,-599.59,0.00017,2]
[349904417,1737488705613,1600.17991743,0.00017,30]
[349904418,1737488947146,-0.41,0.00017,2]
[349904419,1737488947170,-640.87,0.0001705,2]
[349904420,1737488947191,-207.77857647,0.000189,2]
[349904421,1737488947213,-2062.82217674,0.000189,2]
[349904422,1737488947234,-177.01,0.00018977,2]
[349904423,1737488947256,-533.62,0.00018982,2]
[349904424,1737488947277,-912.60026079,0.00019,2]
[349904425,1737488948099,-1514.39973921,0.00019,2]
[349904426,1737488948122,-650.0,0.00019,2]
[349904427,1737488948145,-250.0,0.00019007,2]
[349904428,1737488949191,404.48092,0.00018805,2]
[349904438,1737489031532,-281.81,0.00019077,2]
[349904439,1737489031542,-278.68,0.00019116,2]
[349904440,1737489031552,-649.80506852,0.00019145,2]
[349904441,1737489031564,-350.19493148,0.00019145,2]
[349904442,1737489031574,-150.0,0.00019151,2]
[349904443,1737489031584,-150.0,0.00019187,2]
[349904444,1737489031593,-300.0,0.00019214,2]
[349904445,1737489031602,-200.0,0.00019215,2]
[349904446,1737489031612,-250.0,0.0001922,2]
[349904447,1737489031622,-640.87,0.00019314,2]
[349904448,1737489031632,-21924.79,0.00019333,2]
[349904449,1737489031642,-156.05,0.00019408,30]
[349904450,1737489031651,-174.14,0.0001943,2]
[349904451,1737489031661,-548.92261348,0.00019556,2]
[349904452,1737489031670,-189.67,0.00019573,2]
[349904453,1737489031681,-19768.96,0.00019645,2]
[349904454,1737489031690,-200.0,0.00019656,2]
[349904455,1737489031700,-1000.0,0.00019726,14]
[349904456,1737489031709,-405.0,0.00019735,2]
[349904457,1737489031719,-5633.62,0.00019736,2]
[349904458,1737489031728,-250.0,0.00019804,2]
[349904459,1737489031737,-207.86711206,0.000199,2]
[349904460,1737489031747,-500.0,0.00020055,2]
[349904461,1737489031756,-27565.09,0.00020145,2]
[349904462,1737489031765,-812.63,0.00020145,2]
[349904463,1737489031775,-998.75,0.00020145,2]
[349904464,1737489031784,-9999.99,0.00020145,2]
[349904465,1737489031793,-264.65,0.00020145,2]
[349904466,1737489031803,-999.99,0.00020145,2]
[349904467,1737489031812,-150.99,0.00020145,2]
[349904468,1737489031821,-349.5712,0.00020345,2]
[349904469,1737489031831,-207.86711202,0.000204,2]
[349904470,1737489031840,-1008.83,0.00020423,2]
[349904471,1737489031850,-17960.38,0.00020445,2]
[349904472,1737489031859,-2405.5933,0.00020446,2]
[349904473,1737489031873,-152.0,0.00020533,3]
[349904474,1737489031883,-749.95100942,0.00020764,2]
[349904475,1737489031892,-233.38022162,0.00020792,2]
[349904476,1737489031901,-500.0,0.00020795,2]
[349904478,1737489031912,-5013.86596346,0.00020801,2]
[349904480,1737489031921,-5013.86596346,0.00020807,2]
[349904481,1737489031930,-233.38022162,0.00020807,2]
[349904483,1737489031940,-200.0,0.00020821,2]
[349904485,1737489031950,-200.0,0.00020826,2]
[349904487,1737489031960,-233.38022162,0.00020827,2]
[349904488,1737489031969,-233.38022162,0.00020827,2]
[349904490,1737489031979,-749.95100935,0.00020835,2]
[349904492,1737489031988,-200.0,0.00020843,2]
[349904493,1737489031997,-200.0,0.00020844,2]
[349904495,1737489032007,-1542.89041414,0.0002085,2]
[349904497,1737489032016,-275.8,0.00020854,2]
[349904499,1737489032025,-500.0,0.00020863,2]
[349904500,1737489032035,-500.0,0.00020863,2]
[349904502,1737489032045,-636.04,0.00020863,2]
[349904504,1737489032055,-500.0,0.00020864,2]
[349904505,1737489032064,-502.34973808,0.00020864,2]
[349904507,1737489032074,-500.0,0.00020864,2]
[349904509,1737489032083,-501.52072772,0.00020864,2]
[349904510,1737489032092,-500.0,0.00020864,2]
[349904512,1737489032101,-501.11363694,0.00020864,2]
[349904514,1737489032110,-500.0,0.00020864,2]
[349904516,1737489032119,-500.0,0.00020864,2]
[349904517,1737489032129,-500.0,0.00020864,2]
[349904519,1737489032138,-500.0,0.00020864,2]
[349904521,1737489032147,-500.0,0.00020864,2]
[349904523,1737489032156,-500.0,0.00020864,2]
[349904524,1737489032166,-500.0,0.00020864,2]
[349904526,1737489032174,-500.0,0.00020864,2]
[349904528,1737489032183,-500.0,0.00020864,2]
[349904529,1737489032192,-500.0,0.00020864,2]
[349904531,1737489032201,-500.0,0.00020864,2]
[349904533,1737489032212,-500.0,0.00020864,2]
[349904535,1737489032221,-347.63221302,0.00020864,2]
[349904536,1737489032230,-500.0,0.00020864,2]
[349904538,1737489032241,-500.0,0.00020864,2]
[349904549,1737489032440,-500.0,0.00020864,2]
[349904550,1737489032450,-500.0,0.00020864,2]
[349904551,1737489032459,-500.0,0.00020864,2]
[349904552,1737489032468,-500.0,0.00020864,2]
[349904553,1737489032477,-500.0,0.00020864,2]
[349904554,1737489032485,-504.29210305,0.00020864,2]
[349904555,1737489032494,-500.0,0.00020864,2]
[349904556,1737489032503,-500.0,0.00020864,2]
[349904557,1737489032512,-500.0,0.00020864,2]
[349904558,1737489032521,-500.0,0.00020864,2]
[349904559,1737489032530,-500.0,0.00020864,2]
[349904561,1737489032539,-500.0,0.00020864,2]
[349904562,1737489032549,-500.0,0.00020864,2]
[349904564,1737489032559,-500.0,0.00020864,2]
[349904566,1737489032568,-500.0,0.00020864,2]
[349904567,1737489032578,-500.0,0.00020864,2]
[349904569,1737489032587,-613.90448665,0.00020864,2]
[349904572,1737489032600,-583.46291414,0.00020864,2]
[349904574,1737489032610,-500.0,0.00020864,2]
[349904576,1737489032620,-500.0,0.00020864,2]
[349904578,1737489032629,-500.0,0.00020864,2]
[349904580,1737489032639,-500.0,0.00020864,2]
[349904582,1737489032648,-500.0,0.00020864,2]
[349904584,1737489032657,-502.29605104,0.00020864,2]
[349904586,1737489032667,-500.0,0.00020864,2]
[349904588,1737489032676,-500.0,0.00020864,2]
[349904590,1737489032687,-500.0,0.00020864,2]
[349904592,1737489032697,-500.0,0.00020864,2]
[349904594,1737489032706,-500.0,0.00020864,2]
[349904596,1737489032716,-500.0,0.00020864,2]
[349904598,1737489032725,-500.0,0.00020864,2]
[349904600,1737489032734,-303.15697552,0.00020864,2]
[349904602,1737489032744,-500.0,0.00020864,2]
[349904604,1737489032754,-505.03813631,0.00020864,2]
[349904605,1737489032763,-500.0,0.00020864,2]
[349904607,1737489032773,-500.0,0.00020864,2]
[349904609,1737489032783,-500.0,0.00020864,2]
[349904611,1737489032793,-500.0,0.00020864,2]
[349904613,1737489032803,-500.0,0.00020864,2]
[349904615,1737489032812,-500.0,0.00020864,2]
[349904617,1737489032822,-500.0,0.00020864,2]
[349904619,1737489032831,-500.0,0.00020864,2]
[349904621,1737489032840,-500.0,0.00020864,2]
[349904623,1737489032850,-500.0,0.00020864,2]
[349904625,1737489032860,-500.0,0.00020864,2]